[Event "44th Chess Olympiad Women 2022"]
[Site "Chennai"]
[Date "2022.08.03"]
[Round "6.1"]
[White "Koneru, Humpy"]
[Black "Dzagnidze, Nana"]
[Result "1-0"]
[WhiteElo "2586"]
[BlackElo "2531"]
[Annotator "TA"]
[PlyCount "83"]
[EventDate "2022.??.??"]
[TimeControl "60"]

{[%evp 18,83,31,34,37,34,31,33,42,16,25,11,7,-18,-4,-16,-13,-35,-23,-26,-20,
-45,-54,-65,7,12,17,7,4,11,95,95,91,75,190,193,230,244,253,246,409,387,445,464,
528,477,491,466,431,441,460,447,889,876,1128,468,456,447,626,586,559,556,1010,
799,809,808,804,759]} 1. d4 {[%emt 0:00:04]} Nf6 {[%emt 0:00:06]} 2. c4 {
[%emt 0:00:10]} e6 {[%emt 0:00:08]} 3. Nc3 {[%emt 0:00:15]} c5 {[%emt 0:00:34]}
4. d5 {[%emt 0:01:13]} exd5 {[%emt 0:00:08]} 5. cxd5 {[%emt 0:00:10]} g6 {
[%emt 0:00:06]} 6. Nf3 {[%emt 0:02:14]} d6 {[%emt 0:00:14]} 7. Bf4 {[%emt 0:00:
00]} a6 {[%emt 0:00:21]} 8. a4 {[%emt 0:00:36]} Bg7 {[%emt 0:00:05]} 9. h3 {
[%emt 0:04:22]} O-O {[%emt 0:00:15]} 10. e3 {[%emt 0:00:13]} Ne8 {[%emt 0:00:
00] A61: Modern Benoni: Nf3 without early e4.} 11. Be2 {[%emt 0:02:24]} Nd7 {
[%emt 0:00:16]} 12. O-O {[%emt 0:00:17]} b6 {[%emt 0:06:27] White is slightly
better. 12...Ne5 is setting a new trend.} 13. Nd2 {[%emt 0:03:15]} Ne5 {
[%emt 0:01:06]} 14. Qb3 $5 {[%emt 0:05:45] Exploring less charted territory.}
Rb8 {[%emt 0:12:21] [#]} 15. Rad1 $146 {[%emt 0:12:44]} ({Predecessor:} 15.
Rfd1 Nc7 16. Nce4 b5 17. Bxe5 Bxe5 18. Nc4 Bf5 19. Nxe5 Bxe4 20. Nc6 Qg5 21. f3
Bxd5 22. Rxd5 Nxd5 23. Qxd5 Qxe3+ {0-1 (36) Keskin,E (1719) -Celik,E (1864)
Ankara 2018}) 15... b5 {[%emt 0:07:56]} 16. Bh2 {[%emt 0:01:47]} f5 {[%emt 0:
21:25]} 17. axb5 {[%emt 0:10:05]} axb5 {[%emt 0:00:02]} 18. Qc2 {[%emt 0:01:00]
} ({Don't go for} 18. Nxb5 $2 Bd7 19. Rc1 Nc7 20. Nxd6 (20. Bxe5 $2 Bxe5 21.
Qd1 Nxb5 $19) 20... Rxb3 21. Nxb3 Nxd5 $19) (18. Bxb5 $2 Nc7 19. Nc4 Nxc4 20.
Qxc4 Bxc3 21. bxc3 Rxb5 $19) 18... Nc7 {[%emt 0:04:25]} 19. b4 {[%emt 0:06:42]}
c4 {[%emt 0:03:06]} 20. Nf3 {[%emt 0:10:06]} Nf7 {[%emt 0:00:00]} (20... Nxf3+
$15 21. Bxf3 Bb7) 21. Nd4 $11 {[%emt 0:00:43] With the idea Nc6.} Bd7 {[%emt 0:
01:20]} 22. Nc6 {[%emt 0:09:37]} Bxc6 {[%emt 0:05:26]} 23. dxc6 {[%emt 0:00:03]
[%cal Yc3b5]} Be5 {[%emt 0:05:07] [#]} (23... Qf6 $11 {keeps the balance.} 24.
Nd5 Nxd5 25. Rxd5 Rfc8) 24. Bxe5 $1 $16 {[%emt 0:04:05] White is much more
active. Black is now going downhill.} Nxe5 {[%emt 0:00:01] [#]} 25. f4 $1 {
[%emt 0:00:20]} Nf7 {[%emt 0:00:04]} (25... Nxc6 $16 {is a better defense.} 26.
Nxb5 d5 27. Bxc4 Nxb4) 26. Bf3 $18 {[%emt 0:01:05]} Qe7 {[%emt 0:05:33]} 27.
Rfe1 {[%emt 0:03:16]} Rfe8 {[%emt 0:04:39]} 28. Qd2 {[%emt 0:02:36]} Rbd8 $2 {
[%emt 0:05:30]} (28... Qf6 29. e4 d5) 29. e4 {[%emt 0:00:00]} fxe4 {[%emt 0:00:
40]} 30. Rxe4 {[%emt 0:02:28] White is clearly winning.} Qh4 {[%emt 0:00:07]}
31. Nd5 {[%emt 0:02:05]} Rxe4 {[%emt 0:00:47]} 32. Bxe4 {[%emt 0:00:03]} Nxd5 {
[%emt 0:02:40]} 33. Bxd5 {[%emt 0:00:54]} Qf6 {[%emt 0:00:50]} 34. Qe3 {
[%emt 0:01:47]} Rf8 {[%emt 0:02:30]} (34... Ra8 $142 35. Qb6 c3) 35. Qe6 {
[%emt 0:02:56]} Qd8 {[%emt 0:00:07]} 36. Re1 {[%emt 0:00:00]} (36. f5 $142 Kg7
37. f6+ Qxf6 38. c7 Qxe6 39. Bxe6) 36... Kg7 {[%emt 0:00:00]} 37. Qe7 {[%emt 0:
01:17]} Qb6+ {[%emt 0:00:13]} (37... Qxe7 $142 38. Rxe7 c3) 38. Qe3 {[%emt 0:
00:44]} Qxe3+ {[%emt 0:01:06]} 39. Rxe3 {[%emt 0:00:02] Threatens to win with
c7.} Kf6 {[%emt 0:00:06]} 40. Re6+ {[%emt 0:00:33]} Kf5 {[%emt 0:00:02]} 41. c7
{[%emt 0:10:15]} c3 {[%emt 0:02:38]} 42. Re3 {[%emt 0:00:00] Weighted Error
Value: White=0.22 (precise) /Black=0.35} 1-0

[Event "44th Chess Olympiad Women 2022"]
[Site "Chennai"]
[Date "2022.08.03"]
[Round "6.1"]
[White "Melia, Salome"]
[Black "Tania, Sachdev"]
[Result "1/2-1/2"]
[WhiteElo "2384"]
[BlackElo "2399"]
[Annotator "TA"]
[PlyCount "70"]
[EventDate "2022.??.??"]
[TimeControl "60"]

{[%evp 23,70,0,12,24,11,29,25,7,5,0,0,0,0,-47,-56,-57,0,0,0,0,0,-9,0,0,0,20,1,
0,0,0,0,0,0,-25,0,0,0,0,0,0,0,0,0,0,0,-4,-5,-5,0]} 1. e4 {[%emt 0:00:05]} e5 {
[%emt 0:00:24]} 2. Nf3 {[%emt 0:00:05]} Nc6 {[%emt 0:00:03]} 3. Bb5 {[%emt 0:
00:00][%cal Yf1b5,Yb5a4,Ya4b3,Yb3a2]} a6 {[%emt 0:00:19]} 4. Ba4 {[%emt 0:00:
06]} Nf6 {[%emt 0:00:21]} 5. O-O {[%emt 0:00:26]} Be7 {[%emt 0:00:00]} 6. Re1 {
[%emt 0:00:40]} b5 {[%emt 0:00:15]} 7. Bb3 {[%emt 0:00:02]} O-O {[%emt 0:00:49]
} 8. a4 {[%emt 0:01:00]} Bb7 {[%emt 0:00:30]} 9. d3 {[%emt 0:00:00]} d6 {
[%emt 0:00:24]} 10. c3 {[%emt 0:09:35]} Na5 {[%emt 0:02:09]} 11. Ba2 {[%emt 0:
02:05]} c5 {[%emt 0:03:16]} 12. Nbd2 {[%emt 0:02:09]} Qc7 {[%emt 0:00:00]} 13.
Nf1 {[%emt 0:13:13] C88: Closed Ruy Lopez: Anti-Marshall Systems.} c4 {[%emt 0:
20:11]} 14. Bg5 {[%emt 0:24:43]} (14. axb5 {is more complex.} axb5 15. Bg5 h6
16. Bxf6 Bxf6 17. Ne3) 14... cxd3 {[%emt 0:39:45]} 15. Bxf6 {[%emt 0:00:00]
White has an edge.} (15. axb5 {seems wilder.} axb5 16. Qxd3 Nc4 17. N3d2) 15...
Bxf6 {[%emt 0:00:05]} 16. axb5 {[%emt 0:00:14]} axb5 {[%emt 0:00:50]} 17. Qxd3
{[%emt 0:00:20]} Nc4 {[%emt 0:02:41] [#]} 18. Ne3 $146 {[%emt 0:05:31]} (18.
N3d2 $11 {feels stronger.}) ({Predecessor:} 18. b3 Nb6 19. b4 Rfc8 20. Qxb5 Kf8
21. Qe2 Qxc3 22. Rac1 Qxb4 23. Rb1 Qa5 24. Qd3 {0-1 (52) Poetz,F (2415)
-Wallner,J (2309) Zwettl 2012}) 18... Nxe3 $15 {[%emt 0:01:43]} ({But not} 
18... Nxb2 19. Qxb5 Na4 {[#]} 20. Bxf7+ $1 (20. Bd5 Nc5 $11) 20... Rxf7 21.
Rxa4 $16) 19. Qxe3 {[%emt 0:00:48]} Bc6 {[%emt 0:03:36]} ({Black should play} 
19... Ra4 $15 20. Bd5 Bxd5 21. exd5 Rfa8) 20. Bb3 $11 {[%emt 0:09:39]} Qb7 {
[%emt 0:01:18]} 21. Rad1 {[%emt 0:01:15]} Be7 {[%emt 0:01:04]} 22. Bd5 {
[%emt 0:06:43]} Ra4 {[%emt 0:09:10]} 23. h3 {[%emt 0:04:27]} h6 {[%emt 0:00:34]
} 24. Bxc6 {[%emt 0:02:53]} Qxc6 {[%emt 0:00:01]} 25. Qd3 {[%emt 0:00:32]} Ra2
{[%emt 0:03:00]} 26. Re2 {[%emt 0:01:21]} Rc8 {[%emt 0:00:31]} 27. Nh2 {
[%emt 0:06:29][%cal Yf3h2,Yh2f1,Yf1e3]} Qc4 {[%emt 0:02:26]} 28. Qxc4 {[%emt 0:
03:21]} bxc4 {[%emt 0:00:07]} 29. Nf1 {[%emt 0:00:53] The position is equal.}
Rb8 {[%emt 0:01:23]} 30. Ne3 {[%emt 0:00:42]} Rbxb2 {[%emt 0:01:31]} 31. Rxb2 {
[%emt 0:00:05]} Rxb2 {[%emt 0:00:02]} 32. Nxc4 {[%emt 0:00:08]} Re2 {[%emt 0:
01:53]} 33. Nxd6 {[%emt 0:01:26]} Bxd6 {[%emt 0:00:10]} 34. Rxd6 {[%emt 0:00:
04]} Re1+ {[%emt 0:00:38]} 35. Kh2 {[%emt 0:00:02]} Rxe4 {[%emt 0:00:00]
Weighted Error Value: White=0.05 (flawless) /Black=0.04 (flawless)} 1/2-1/2

[Event "44th Chess Olympiad Women 2022"]
[Site "Chennai"]
[Date "2022.08.03"]
[Round "6.1"]
[White "Vaishali R"]
[Black "Javakhishvili, Lela"]
[Result "1-0"]
[WhiteElo "2442"]
[BlackElo "2476"]
[Annotator "TA"]
[PlyCount "72"]
[EventDate "2022.??.??"]
[TimeControl "60"]

{[%evp 18,72,21,12,20,0,0,-5,0,-3,0,-20,1,6,0,0,90,98,85,95,128,139,136,125,
137,137,126,105,104,112,102,76,82,77,111,104,411,430,430,422,417,419,418,412,
393,375,709,684,1168,1015,6322,6322,29974,29975,29968,11555,29999]} 1. e4 {
[%emt 0:00:40]} e5 {[%emt 0:00:11]} 2. Nf3 {[%emt 0:00:09]} Nc6 {[%emt 0:00:08]
} 3. Bb5 {[%emt 0:00:05]} Nf6 {[%emt 0:00:15]} 4. O-O {[%emt 0:00:47][%cal
Yh1f1,Yf1e1,Ye1e5]} Nxe4 {[%emt 0:00:16]} 5. Re1 {[%emt 0:00:07]} Nd6 {[%emt 0:
00:11]} 6. Nxe5 {[%emt 0:00:26]} Be7 {[%emt 0:00:26]} 7. Bf1 {[%emt 0:00:00]}
Nxe5 {[%emt 0:00:05]} 8. Rxe5 {[%emt 0:00:03]} O-O {[%emt 0:00:08]} 9. d4 {
[%emt 0:00:13]} Bf6 {[%emt 0:00:07]} 10. Re1 {[%emt 0:00:07]} Re8 {[%emt 0:00:
00] C67: Ruy Lopez: Berlin Defence: 4 0-0 Nxe4.} 11. d5 {[%emt 0:01:10]} Rxe1 {
[%emt 0:07:14]} 12. Qxe1 {[%emt 0:00:21]} b6 {[%emt 0:00:05] [#] The position
is equal.} 13. a4 $146 {[%emt 0:05:28]} ({Predecessor:} 13. c3 Bb7 14. Bf4 Bxd5
15. Bxd6 cxd6 16. Qd1 Be6 17. Qxd6 Qf8 18. Qxf8+ Kxf8 19. Nd2 {1-0 (72)
Mohammad Fahad,R (2321)-Paravyan,D (2647) Chess.com INT 2021}) 13... Bb7 {
[%emt 0:03:06]} 14. c4 {[%emt 0:00:00]} Ba6 {[%emt 0:09:25]} 15. Na3 {[%emt 0:
32:02]} c6 {[%emt 0:07:54]} 16. Bf4 {[%emt 0:03:21]} Nb7 {[%emt 0:00:00] [#]} (
16... Nf5 $11) 17. b4 $1 $16 {[%emt 0:30:36] Be5 is the strong threat. White
is more active.} Bxa1 {[%emt 0:02:19]} 18. Qxa1 {[%emt 0:02:44]} Qe7 {[%emt 0:
06:31]} 19. b5 {[%emt 0:02:25]} Nc5 {[%emt 0:00:32] Hoping for ... Bb7.} (19...
cxb5 $2 20. axb5 (20. cxb5 Bxb5 21. Nxb5 Qb4 $16) 20... Qe4 21. bxa6 Qxf4 22.
axb7) 20. bxa6 {[%emt 0:00:26]} Nxa6 {[%emt 0:08:02]} 21. Be3 {[%emt 0:05:02]}
Nc5 {[%emt 0:03:52]} 22. Nc2 {[%emt 0:05:32][%cal Ya3c2,Yc2e3,Ye3f5,Yf5e7,
Ye7c6]} cxd5 {[%emt 0:09:34]} 23. cxd5 {[%emt 0:00:07]} Qe4 {[%emt 0:00:11]
[%csl Ya4,Yc2,Yd5]} 24. Bxc5 {[%emt 0:00:39]} bxc5 {[%emt 0:02:52]} 25. Ne3 {
[%emt 0:00:10]} Rb8 {[%emt 0:00:40] Prevents Qb2.} 26. Qc3 {[%emt 0:02:39]}
Qxa4 {[%emt 0:11:01] [#] This move loses the game for Black.} (26... d6 $16)
27. Nf5 $1 $18 {[%emt 0:03:06][%csl Gf5][%cal Rc3g7]} Qg4 {[%emt 0:00:19] [#]}
28. Qe5 {[%emt 0:01:07][%cal Re5b8]} Rf8 {[%emt 0:08:46]} 29. h3 {[%emt 0:01:
40]} f6 {[%emt 0:00:23] Threatens to win with ...Qxg2+.} 30. Ne7+ {[%emt 0:00:
20]} ({Worse is} 30. hxg4 fxe5 31. Bb5 Rd8 $17) 30... Kf7 {[%emt 0:00:41]} 31.
Qc7 {[%emt 0:00:25]} Qa4 {[%emt 0:03:09]} (31... Qe4) 32. Nc6 {[%emt 0:01:20]}
Kg8 {[%emt 0:00:52]} 33. Qxd7 {[%emt 0:00:00] Ne7+ would kill now.} Qe4 {
[%emt 0:01:16]} 34. Ne7+ {[%emt 0:00:41]} Kh8 {[%emt 0:00:05]} 35. Nf5 {
[%emt 0:00:07][%csl Gf5][%cal Rd7g7]} Rg8 {[%emt 0:00:00]} 36. Nd6 {[%emt 0:00:
05][%cal Rd6f7]} Qd4 {[%emt 0:00:14] Weighted Error Value: White=0.03 
(flawless) /Black=0.75} 1-0

[Event "44th Chess Olympiad Women 2022"]
[Site "Chennai"]
[Date "2022.08.03"]
[Round "6.2"]
[White "Cosma, Elena-Luminita"]
[Black "Buksa, Nataliya"]
[Result "1/2-1/2"]
[WhiteElo "2248"]
[BlackElo "2401"]
[Annotator "TA"]
[PlyCount "60"]
[EventDate "2022.??.??"]
[TimeControl "60"]

{[%evp 16,60,7,0,45,-6,10,0,18,8,28,22,32,16,33,33,37,17,27,14,24,17,12,0,0,0,
26,26,33,33,33,33,35,33,37,34,42,42,42,42,42,42,42,42,42,0,43]} 1. Nf3 {
[%emt 0:00:03]} c5 {[%emt 0:02:05]} 2. c4 {[%emt 0:00:10]} Nc6 {[%emt 0:00:37]}
3. d4 {[%emt 0:00:21]} cxd4 {[%emt 0:00:12]} 4. Nxd4 {[%emt 0:00:05]} Nf6 {
[%emt 0:00:48]} 5. Nc3 {[%emt 0:00:16]} e6 {[%emt 0:00:11]} 6. e4 {[%emt 0:00:
00]} Bb4 {[%emt 0:00:53]} 7. Nxc6 {[%emt 0:00:46]} bxc6 {[%emt 0:00:04]} 8. Bd3
{[%emt 0:00:26]} e5 {[%emt 0:00:24]} 9. O-O {[%emt 0:00:41]} d6 {[%emt 0:05:00]
B44: Sicilian: Taimanov: 5 Nb5.} 10. h3 {[%emt 0:08:54]} ({White should play} 
10. Na4 $14) 10... Bc5 {[%emt 0:03:06]} 11. Qe2 {[%emt 0:05:22] [#]} h6 $146 {
[%emt 0:12:50]} ({Predecessor:} 11... O-O 12. Be3 Nd7 13. Bxc5 Nxc5 14. b4 Ne6
15. Qe3 a5 16. a3 Nd4 17. c5 Be6 {0-1 (34) Escudero Manzano,A (2222)-Korneev,O
(2625) Linares 2013}) 12. Be3 {[%emt 0:08:52]} Nd7 {[%emt 0:08:26]} 13. Na4 {
[%emt 0:11:56]} Bxe3 {[%emt 0:03:03]} 14. Qxe3 {[%emt 0:00:18]} Qa5 {[%emt 0:
00:00]} 15. Bc2 {[%emt 0:15:59]} Nc5 {[%emt 0:02:52]} 16. Nxc5 {[%emt 0:09:15]}
Qxc5 {[%emt 0:00:09]} 17. Ba4 {[%emt 0:09:03] [#] Strongly threatening Qxc5.}
Bd7 $1 {[%emt 0:09:44]} ({Resist} 17... Qxc4 18. Qa3 O-O 19. Rac1 $16) 18. Qxc5
{[%emt 0:08:27]} dxc5 {[%emt 0:00:03]} 19. Rfd1 {[%emt 0:01:47]} Ke7 {[%emt 0:
00:00]} 20. Rd2 {[%emt 0:01:44]} Rhd8 {[%emt 0:05:04]} 21. Rad1 {[%emt 0:00:07]
} Be8 {[%emt 0:00:03]} 22. Rxd8 $1 {[%emt 0:00:15]} Rxd8 {[%emt 0:00:03]} 23.
Rxd8 {[%emt 0:00:19]} Kxd8 $14 {[%emt 0:00:02] Endgame KB-KB} 24. Kf1 {[%emt 0:
00:26]} Bd7 {[%emt 0:00:18]} 25. Ke2 {[%emt 0:00:30]} Kc7 {[%emt 0:00:06]} 26.
Kd3 {[%emt 0:00:20]} Be6 {[%emt 0:02:37]} 27. Bd1 {[%emt 0:00:00]} Kb6 {
[%emt 0:02:28]} 28. Kc3 {[%emt 0:01:31]} Bd7 {[%emt 0:04:14]} 29. Be2 {[%emt 0:
01:22]} Be6 {[%emt 0:00:06]} 30. Bd1 {[%emt 0:03:42]} Bd7 {[%emt 0:01:41]
Weighted Error Value: White=0.09 (flawless) /Black=0.08 (flawless)} 1/2-1/2

[Event "44th Chess Olympiad Women 2022"]
[Site "Chennai"]
[Date "2022.08.03"]
[Round "6.2"]
[White "Osmak, Yuliia"]
[Black "Lehaci, Miruna-Daria"]
[Result "0-1"]
[WhiteElo "2420"]
[BlackElo "2193"]
[Annotator "TA"]
[PlyCount "142"]
[EventDate "2022.??.??"]
[TimeControl "60"]

{[%evp 13,142,43,36,20,18,12,39,36,31,25,33,18,75,13,83,79,82,74,85,85,82,81,
106,100,112,72,131,118,127,139,203,188,176,64,52,72,67,61,55,10,8,18,54,11,47,
39,39,48,42,42,42,0,18,17,25,0,54,43,42,-8,-7,-8,-8,-6,-4,-26,0,0,0,0,0,0,0,0,
10,10,8,8,8,8,32,31,106,0,44,36,51,19,77,10,11,10,10,9,24,24,46,45,94,0,9,0,0,
0,0,-14,0,-40,-48,-44,0,0,0,0,3,3,3,0,0,0,0,-29981,-29982,-29982,-29982,-29982,
-29983,-29983,-29984,-29983,-29984]} 1. d4 {[%emt 0:00:06]} Nf6 {[%emt 0:00:06]
} 2. c4 {[%emt 0:00:05]} e6 {[%emt 0:00:04]} 3. Nf3 {[%emt 0:00:09]} c5 {
[%emt 0:00:09]} 4. d5 {[%emt 0:00:29]} exd5 {[%emt 0:00:04]} 5. cxd5 {[%emt 0:
00:00]} d6 {[%emt 0:00:03]} 6. Nc3 {[%emt 0:00:18]} g6 {[%emt 0:00:09]} 7. Bf4
{[%emt 0:00:11]} Bg7 {[%emt 0:00:17]} 8. h3 {[%emt 0:00:05] A61: Modern Benoni:
Nf3 without early e4.} O-O {[%emt 0:00:15][%cal Yb7b5]} 9. e3 $1 {[%emt 0:00:
00]} Na6 {[%emt 0:00:04]} 10. Bxa6 {[%emt 0:00:17] White is slightly better.}
bxa6 {[%emt 0:00:13]} 11. Rc1 {[%emt 0:00:10]} Rb8 {[%emt 0:11:49]} 12. b3 {
[%emt 0:00:21]} h6 {[%emt 0:01:07] [#]} (12... a5 $11) 13. Bh2 $146 {[%emt 0:
00:00]} (13. Nd2 $16) ({Predecessor:} 13. O-O g5 14. Bh2 a5 15. Nd2 Ba6 16. Nc4
Bxc4 17. bxc4 Qe7 18. Rb1 Nd7 19. Qc2 {0-1 (49) Cori,J (2655)-Indjic,A (2612)
Riga 2021}) 13... Rb7 {[%emt 0:10:35]} (13... Bf5 $11 {remains equal.}) 14. Nd2
{[%emt 0:02:56]} Ne8 {[%emt 0:02:00]} 15. O-O {[%emt 0:02:47]} f5 {[%emt 0:00:
00]} 16. Nc4 {[%emt 0:03:45]} g5 {[%emt 0:10:55]} 17. Re1 {[%emt 0:11:02]} Rbf7
{[%emt 0:02:55]} 18. Qd3 {[%emt 0:02:24]} a5 {[%emt 0:16:31]} 19. Ne2 {[%emt 0:
00:00]} f4 {[%emt 0:02:10]} ({Better is} 19... a4) 20. exf4 $16 {[%emt 0:01:49]
} gxf4 {[%emt 0:01:18]} 21. Qf3 {[%emt 0:01:37]} Nc7 {[%emt 0:06:14]} (21...
Be5 $16 22. Nxe5 dxe5) 22. Rcd1 {[%emt 0:14:11]} (22. Nxf4 $6 a4 23. bxa4 Bd4
$16) 22... Nb5 {[%emt 0:01:48]} 23. a4 {[%emt 0:04:49]} (23. Nxf4 $6 Rf5 $16) (
23. Bxf4 $18 {Hoping for Qg3.} Nd4 24. Nxd4 Bxd4 25. Re4) 23... Nd4 $14 {
[%emt 0:04:04]} 24. Nxd4 {[%emt 0:00:04]} cxd4 {[%emt 0:05:15]} 25. Re4 {
[%emt 0:04:14][%cal Rh2f4]} Bb7 {[%emt 0:01:52]} 26. Re6 {[%emt 0:08:13]} Rf5
$1 $132 {[%emt 0:02:21] Black is not keeping still} 27. Rxd6 {[%emt 0:00:34]}
Qg5 {[%emt 0:01:02][%cal Rb7d5]} 28. Qg4 {[%emt 0:08:59]} (28. Nxa5 Bxd5 29.
Rxd5 (29. Qg4 h5 $17) 29... Rxd5 $17) 28... Bxd5 {[%emt 0:01:15] [#]} (28...
Qxg4 {seems wilder.} 29. hxg4 Rg5 30. Nxa5 Bxd5 31. Nc6 Bxb3 32. Re1 d3) 29.
Bxf4 $1 {[%emt 0:01:30]} Qxg4 {[%emt 0:07:26]} 30. hxg4 {[%emt 0:00:00]} Rxf4 {
[%emt 0:00:05]} 31. Rxd5 {[%emt 0:00:02]} Rxf2 {[%emt 0:00:37]} 32. Rxa5 {
[%emt 0:00:22]} Re2 {[%emt 0:04:10]} 33. Rf5 {[%emt 0:01:43]} Rb8 {[%emt 0:01:
35]} 34. Rd3 {[%emt 0:00:41]} Rbe8 {[%emt 0:01:44]} (34... Rc2 $11) 35. g5 {
[%emt 0:03:14]} h5 {[%emt 0:00:48]} 36. Rf4 {[%emt 0:05:23]} (36. Rd5 $14)
36... Rc2 $11 {[%emt 0:02:10]} 37. Rd2 {[%emt 0:00:44]} Rc3 {[%emt 0:00:00]}
38. Rf3 {[%emt 0:00:28]} Rb8 {[%emt 0:00:49]} 39. Na5 {[%emt 0:01:22]} Rc5 {
[%emt 0:00:25][%csl Ya5,Yg5]} (39... Be5 {keeps more tension.} 40. Kf2 Bc7 41.
Nc4 Rbxb3 42. Rxd4 Rc2+) 40. Nc4 {[%emt 0:00:20]} Rxg5 {[%emt 0:00:04]} 41. Nd6
{[%emt 0:32:38]} Rc5 {[%emt 0:11:14]} 42. Nf5 {[%emt 0:00:00]} Be5 {[%emt 0:07:
42]} 43. Kf2 {[%emt 0:00:00]} (43. Nxd4 $2 Rd8 44. Rfd3 Rcd5 $19) 43... Rb4 {
[%emt 0:06:48]} 44. Re2 {[%emt 0:00:00]} Rb7 {[%emt 0:03:35][%cal Yd4d3]
Against Ne7+} 45. Re4 {[%emt 0:00:00]} Rd7 {[%emt 0:01:08]} 46. b4 {[%emt 0:00:
00]} Rcd5 {[%emt 0:01:14]} 47. Ke2 {[%emt 0:01:43]} d3+ {[%emt 0:00:00] [#]} (
47... a5 $1 $14) 48. Kd2 {[%emt 0:00:03]} ({White has to play} 48. Kd1 $1 $16 {
And now Ne3 would win.} Bf6 49. Re6) 48... Bc3+ {[%emt 0:02:02]} 49. Kd1 {
[%emt 0:00:15]} ({Weaker is} 49. Kxc3 d2 50. Re7 Rxe7 51. Nxe7+ Kh7 $17) 49...
Kh7 {[%emt 0:00:21]} 50. g4 {[%emt 0:02:16] aiming for Rh3.} h4 {[%emt 0:01:01]
} (50... Re5 $1 $11 51. Rxe5 Bxe5) 51. g5 {[%emt 0:00:58]} (51. Ne7 $16 Rg5 52.
Nf5) 51... Re5 {[%emt 0:00:50]} 52. Rxe5 {[%emt 0:00:32]} Bxe5 {[%emt 0:00:04]}
53. Nxh4 {[%emt 0:00:09] Endgame KRB-KRN} Bc3 {[%emt 0:00:26]} 54. b5 {[%emt 0:
00:32]} Kg7 {[%emt 0:00:44]} 55. Rg3 {[%emt 0:00:00]} Rd5 {[%emt 0:00:25]} (
55... Ba5 $14 {was preferrable.}) 56. g6 {[%emt 0:00:38]} (56. Re3 $16) 56...
Bb4 {[%emt 0:00:38]} 57. Ng2 {[%emt 0:00:00] Strongly threatening Nf4.} d2 {
[%emt 0:00:33]} 58. Rg4 {[%emt 0:00:34]} Ba5 {[%emt 0:00:19]} 59. Ne3 {[%emt 0:
00:20]} Rh5 {[%emt 0:00:22] White must now prevent ...Rh1+. Black has
compensation.} (59... Re5 $5 60. Rg3 Rh5 $11) 60. Rg1 {[%emt 0:00:29] Against
Rh1} Rc5 {[%emt 0:00:28] Against Nc4. ( -> ...Rc1+)} 61. Ke2 $1 {[%emt 0:00:45]
} Rc1 {[%emt 0:00:08]} (61... Re5 $5 {[%cal Ra5b6]} 62. Rf1 Bb6 63. Kxd2 (63.
Rf7+ $2 Kxg6 64. Rf1 Bxe3 $19) 63... Bxe3+ 64. Kd3 Bc5 $15) 62. Nd1 {[%emt 0:
00:21]} Rc4 {[%emt 0:00:07]} 63. Ne3 {[%emt 0:00:22]} Rf4 {[%emt 0:00:55]} 64.
Rg4 {[%emt 0:00:28]} Rf6 {[%emt 0:00:00]} 65. Rd4 {[%emt 0:00:23]} Kxg6 {
[%emt 0:00:31]} 66. Nc4 {[%emt 0:00:14]} Re6+ {[%emt 0:00:29]} 67. Kd1 $2 {
[%emt 0:00:15]} (67. Kf3 $11 Rf6+ 68. Kg4 (68. Ke2 Re6+ 69. Kf3 Rf6+ 70. Kg4
Re6 $11)) 67... Re1+ {[%emt 0:00:32] Black mates.} 68. Kc2 {[%emt 0:00:06]}
Rc1+ {[%emt 0:00:03]} 69. Kb3 {[%emt 0:00:00] [#]} Rc3+ $1 {[%emt 0:01:05]} 70.
Kb2 {[%emt 0:00:13] [#]} Rxc4 $1 {[%emt 0:00:03]} 71. Rxc4 {[%emt 0:00:57]} (
71. Rd5 Rc1) 71... d1=Q {[%emt 0:00:13] Black used his chance. Weighted Error
Value: White=0.18 (very precise) /Black=0.17 (very precise)} 0-1